bitfinex-derivatives/quotes_SOLF0:USTF0_20250719
["timestamp","ask_amount","ask_price","bid_price","bid_amount"]
[1752950623982,8.8573,177.3,177.29,0.03774526]
[1752950624682,1.53915657,177.3,177.26,3.29]
[1752950624885,3.22,177.29,177.26,3.29]
[1752950625788,3.22,177.27,177.26,3.29]
[1752950630491,3.22,177.27,177.23,8.04515036]
[1752950630692,3.22,177.27,177.26,3.15]
[1752950639797,0.04275551,177.28,177.26,3.15]
[1752950640501,3.06275551,177.28,177.26,5.6384]
[1752950640700,3.06275551,177.28,177.27,3.15]
[1752950644303,8.70065551,177.28,177.27,3.15]
[1752950653604,0.04275551,177.28,177.25,3.15]
[1752950653809,3.02,177.26,177.22,3.15]
[1752950654104,3.02,177.24,177.21,1.53969779]
[1752950654412,3.02,177.24,177.23,3.15]
[1752950654413,8.6595,177.24,177.23,3.15]
[1752950655303,3.02,177.24,177.23,3.15]
[1752950658915,8.6592,177.24,177.23,3.15]
[1752950660915,8.7199,177.22,177.21,3.27]
[1752950661112,10.25959779,177.22,177.21,3.27]
[1752950661309,3.08,177.21,177.17,1.53969779]
[1752950661516,3.08,177.21,177.19,3.27]
[1752950661715,8.7206,177.2,177.19,3.27]
[1752950662617,3.08,177.22,177.19,3.27]
[1752950662819,3.08,177.22,177.19,1.53969779]
[1752950663020,3.08,177.22,177.2,3.27]
[1752950663412,6.33108586,177.27,177.13,379.12]
[1752950663413,3.08,177.2,177.19,3.27]
[1752950664020,8.7205,177.2,177.19,3.27]
[1752950666419,3.08,177.18,177.17,3.27]
[1752950667021,10.26079779,177.18,177.17,3.27]
[1752950668321,10.26079779,177.18,177.14,1.53969779]
[1752950668521,7.18079779,177.18,177.16,3.27]
[1752950668721,8.7214,177.17,177.16,3.27]
[1752950669424,3.08,177.17,177.16,3.27]
[1752950670428,8.7214,177.17,177.16,3.27]
[1752950670728,3.08,177.16,177.09,3.27]
[1752950670929,1.53969779,177.14,177.09,4.80969779]
[1752950671227,3.08,177.13,177.1,3.27]
[1752950671423,3.08,177.12,177.1,3.27]
[1752950672625,5.643,177.12,177.07,3.27]
[1752950672928,3.08,177.1,177.09,3.27]
[1752950675328,2.41037855,177.14,177.09,3.27]
[1752950675533,3.08,177.13,177.09,3.27]
[1752950676135,5.6434,177.11,177.09,3.27]
[1752950676329,3.08,177.1,177.07,5.6445]
[1752950676930,3.08,177.1,177.08,3.27]
[1752950677736,3.08,177.1,177.09,3.27]
[1752950677925,8.7237,177.1,177.09,3.27]
[1752950678324,3.08,177.1,177.09,3.27]
[1752950682131,3.08,177.12,177.06,2.41037855]
[1752950682435,3.08,177.11,177.07,3.27]
[1752950682938,3.08,177.11,177.09,5.6437]
[1752950683236,3.08,177.11,177.1,3.27]
[1752950691646,3.08,177.11,177.1,8.9137]
[1752950693237,5.6425,177.14,177.06,2.41037855]
[1752950693438,3.27,177.14,177.09,3.29]
[1752950693642,5.68037855,177.16,177.09,3.29]
[1752950693846,5.6423,177.15,177.12,5.6428]
[1752950694044,3.27,177.14,177.13,3.29]
[1752950695444,3.27,177.14,177.13,8.9327]
[1752950698840,3.27,177.16,177.15,3.29]
[1752950699641,3.27,177.16,177.13,1.5420753]
[1752950699642,3.27,177.15,177.14,5.6423]
[1752950699844,3.27,177.15,177.13,3.29]
[1752950700042,3.27,177.15,177.13,5.6425]
[1752950700242,3.27,177.15,177.14,3.29]
[1752950702048,3.27,177.15,177.14,8.9324]
[1752950703145,5.6414,177.18,177.14,8.9324]
[1752950703146,0.03718387,177.16,177.14,3.29]
[1752950703345,0.03718387,177.16,177.15,4.8320753]
[1752950703546,3.27,177.19,177.18,3.29]
[1752950703751,3.27,177.21,177.18,3.29]
[1752950704151,3.27,177.21,177.19,1.5420753]
[1752950704348,3.27,177.23,177.2,3.29]
[1752950704549,3.27,177.22,177.2,3.29]
[1752950704754,3.27,177.22,177.2,3.33226111]
[1752950705154,3.27,177.21,177.2,3.33226111]
[1752950706254,3.27,177.21,177.2,8.97276111]
[1752950706455,3.27,177.22,177.2,5.68276111]
[1752950706658,3.27,177.22,177.21,3.29]
[1752950708856,3.27,177.22,177.2,0.04226111]
[1752950709057,3.27,177.22,177.2,3.33226111]
[1752950709254,3.27,177.22,177.2,0.04226111]
[1752950712264,8.9099,177.22,177.2,0.04226111]
[1752950712558,3.27,177.21,177.2,0.04226111]
[1752950713964,3.27,177.21,177.2,3.33226111]
[1752950715161,3.27,177.21,177.2,0.04226111]
[1752950717968,3.27,177.21,177.16,3.29]
[1752950718366,5.6407,177.2,177.16,3.29]
[1752950718567,3.27,177.19,177.13,2.40709162]
[1752950718765,3.27,177.19,177.18,3.29]
[1752950720765,3.15165948,177.2,177.18,3.29]
[1752950720967,0.04165948,177.2,177.18,8.931]
[1752950721165,0.04165948,177.2,177.18,5.641]
[1752950721366,0.04165948,177.2,177.19,3.24]
[1752950722469,0.04165948,177.2,177.19,8.8808]
[1752950723068,3.15165948,177.2,177.19,8.8808]
[1752950725868,0.04165948,177.2,177.19,8.8808]
[1752950726976,0.04165948,177.2,177.19,10.42150811]
[1752950728371,1.54070811,177.24,177.22,5.6397]
[1752950728676,3.11,177.23,177.22,5.6397]
[1752950729076,3.11,177.23,177.22,3.24]
[1752950729677,3.11,177.23,177.22,8.8799]
[1752950730679,3.11,177.23,177.22,3.24]
[1752950731277,3.11,177.23,177.21,8.88]
[1752950731472,3.11,177.23,177.21,3.24]
[1752950731773,3.11,177.23,177.2,8.8804]
[1752950732079,4.65070811,177.23,177.2,8.8804]
[1752950732277,3.11,177.22,177.2,8.8804]
[1752950736279,3.11,177.22,177.2,3.24]
[1752950736974,8.75,177.22,177.2,3.24]
[1752950737179,3.11,177.21,177.2,3.24]
[1752950738782,3.11,177.21,177.2,8.8805]
[1752950739478,3.11,177.22,177.21,5.6401]
[1752950739777,1.54070811,177.24,177.21,3.24]
[1752950740081,3.11,177.24,177.21,3.24]
[1752950740378,3.11,177.24,177.22,1.54070811]
[1752950740583,3.11,177.25,177.23,3.24]
[1752950740975,3.11,177.25,177.24,8.8792]
[1752950741180,3.11,177.25,177.24,3.24]
[1752950743179,3.11,177.25,177.22,0.03804835]
[1752950743385,3.11,177.24,177.22,0.03804835]
[1752950743884,8.7495,177.24,177.22,0.03804835]
[1752950744183,3.11,177.23,177.22,0.03804835]
[1752950744685,4.65070811,177.23,177.22,0.03804835]
[1752950744882,10.29020811,177.23,177.22,0.03804835]
[1752950745084,8.7495,177.23,177.22,0.03804835]
[1752950745987,3.11,177.23,177.22,0.03804835]
[1752950746687,3.11,177.23,177.22,3.27804835]
[1752950748186,3.11,177.23,177.22,0.03804835]
[1752950748988,8.7495,177.23,177.22,0.03804835]
[1752950749187,15.06023018,177.23,177.22,0.03804835]
[1752950755193,8.7495,177.23,177.22,0.03804835]
[1752950755494,3.11,177.23,177.22,3.24804835]
[1752950756089,11.94973018,177.25,177.22,3.24804835]
[1752950756389,3.09,177.23,177.22,3.24804835]
[1752950757692,11.94973018,177.25,177.22,3.24804835]
[1752950757995,9.40073018,177.25,177.23,3.21]
[1752950758195,3.09,177.24,177.23,3.21]
[1752950761699,3.09,177.24,177.23,8.8495]
[1752950762698,3.09,177.24,177.23,3.21]
[1752950764903,4.6305063,177.24,177.23,3.21]
[1752950765096,4.6305063,177.24,177.23,8.8495]
[1752950765601,4.6305063,177.24,177.23,3.21]
[1752950766200,3.09,177.24,177.23,3.21]
[1752950767602,10.2691063,177.26,177.23,3.21]
[1752950767796,10.2691063,177.26,177.24,5.6392]
[1752950768001,8.7286,177.26,177.25,3.21]
[1752950770207,3.09,177.26,177.25,3.21]
[1752950771106,8.7286,177.26,177.25,3.21]
[1752950771306,3.09,177.25,177.22,0.03804835]
[1752950771606,3.09,177.23,177.22,8.88774835]
[1752950771803,3.09,177.23,177.22,3.24804835]
[1752950772809,3.09,177.23,177.22,0.03804835]
[1752950774206,8.7295,177.23,177.22,0.03804835]
[1752950774913,3.09,177.21,177.13,3.21]
[1752950775119,3.09,177.2,177.13,3.21]
[1752950775313,5.6412,177.18,177.14,5.6422]
[1752950775519,3.09,177.17,177.15,3.21]
[1752950775718,3.09,177.17,177.16,3.21]
[1752950776415,3.09,177.16,177.14,3.21]
[1752950779024,2.40762845,177.17,177.14,3.21]
[1752950779228,3.09,177.15,177.14,3.21]
[1752950779619,3.09,177.15,177.14,8.8524]
[1752950780527,3.25,177.16,177.14,8.8524]
[1752950780714,3.25,177.16,177.15,3.32]
[1752950781819,3.25,177.16,177.14,3.32]
[1752950782124,3.25,177.16,177.13,0.03875143]
[1752950782319,8.8924,177.14,177.13,0.03875143]
[1752950782923,3.25,177.14,177.13,3.35875143]
[1752950784827,3.25,177.14,177.13,0.03875143]
[1752950786122,8.8924,177.14,177.13,0.03875143]
[1752950788827,3.25,177.14,177.13,0.03875143]
[1752950789033,3.25,177.14,177.13,3.35875143]
[1752950789523,8.8924,177.14,177.13,3.35875143]
[1752950789728,3.25,177.14,177.13,3.35875143]
[1752950790128,3.25,177.16,177.13,3.35875143]
[1752950790533,3.25,177.15,177.13,3.35875143]
[1752950790731,3.25,177.15,177.13,9.00125143]
[1752950791031,3.25,177.15,177.14,3.32]
[1752950793130,3.25,177.15,177.14,8.9624]
[1752950793730,2.40762845,177.17,177.14,8.9624]
[1752950793933,3.25,177.17,177.16,3.32]
[1752950796434,3.25,177.16,177.13,0.03875143]
[1752950796637,5.65762845,177.14,177.13,0.03875143]
[1752950797339,5.65762845,177.14,177.13,3.35875143]
[1752950798030,3.25,177.14,177.13,3.35875143]
[1752950798733,3.25,177.16,177.13,3.35875143]
[1752950799835,3.25,177.16,177.13,9.00145143]
[1752950800035,3.25,177.15,177.14,3.32]
[1752950802441,3.25,177.16,177.14,3.32]
[1752950804239,8.8918,177.16,177.14,3.32]
[1752950804942,3.25,177.15,177.14,3.32]
[1752950807247,3.25,177.16,177.14,3.32]
[1752950808546,5.6415,177.17,177.14,3.32]
[1752950808747,3.25,177.15,177.14,3.32]
[1752950813447,3.25,177.15,177.14,8.9624]
[1752950813751,3.25,177.15,177.14,8.7124]
[1752950816052,2.44981873,177.18,177.15,5.6421]
[1752950816354,3.25,177.17,177.13,0.03875143]
[1752950816546,3.25,177.17,177.15,3.07]
[1752950817051,4.79196368,177.16,177.15,3.07]
[1752950818955,4.79196368,177.16,177.15,8.7121]
[1752950820456,1.54196368,177.16,177.13,3.10875143]
[1752950820657,4.79196368,177.14,177.13,0.03875143]
[1752950821148,1.54196368,177.14,177.06,4.7238666]
[1752950821347,1.54196368,177.1,177.07,3.07]
[1752950821547,1.54196368,177.08,177.03,1.54196368]
[1752950821745,3.25,177.06,177.04,3.07]
[1752950822152,3.25,177.06,177.05,3.07]
[1752950822856,3.25,177.06,177.05,8.715]
[1752950823758,0.03899238,177.07,177.05,8.715]
[1752950823959,3.28899238,177.07,177.06,3.07]
[1752950824459,3.28899238,177.07,177.05,3.07]
[1752950824859,3.28899238,177.07,177.05,8.7152]
[1752950825060,0.03899238,177.07,177.05,5.6452]
[1752950825261,3.25,177.06,177.05,5.6452]
[1752950825662,3.25,177.06,177.05,8.7152]
[1752950826263,3.25,177.06,177.05,3.07]
[1752950826456,3.25,177.06,176.97,3.07]
[1752950826654,5.6454,177.05,177.0,5.6468]
[1752950826960,3.25,177.03,177.01,3.07]
[1752950827162,3.25,177.02,177.01,3.07]
[1752950827663,3.25,177.02,176.98,3.07]
[1752950827863,3.25,177.0,176.96,3.07]
[1752950828062,3.25,176.96,176.93,3.07]
[1752950828262,2.4116135,176.99,176.93,3.07]
[1752950828563,3.25,176.96,176.91,3.07]
[1752950829363,3.25,176.96,176.93,3.07]
[1752950829364,0.03897528,176.95,176.93,3.07]
[1752950829562,3.25,176.94,176.93,3.07]
[1752950830167,3.25,176.94,176.89,4.7238666]
[1752950830365,3.25,176.91,176.85,7.1354801]
[1752950830561,3.25,176.91,176.9,5.65]
[1752950830769,3.25,176.94,176.87,2.4116135]
[1752950830964,0.04014857,176.92,176.88,3.07]
[1752950831161,3.29014857,176.92,176.88,3.07]
[1752950831562,3.29014857,176.92,176.91,8.7195]
[1752950831865,0.04014857,176.92,176.91,8.7195]
[1752950834164,3.25,176.97,176.96,8.7181]
[1752950837269,0.03584545,176.98,176.97,8.7178]
[1752950837662,2.4116135,177.03,176.98,5.6475]
[1752950837963,3.29043092,176.99,176.98,5.6475]
[1752950838367,3.29043092,176.99,176.98,8.7175]
[1752950840463,3.29043092,176.99,176.97,5.6477]
[1752950840668,3.29043092,176.99,176.96,3.33]
[1752950840868,3.25,176.99,176.96,3.33]
[1752950841171,3.28886176,176.99,176.96,3.33]
[1752950841670,0.03886176,176.99,176.93,2.4116135]
[1752950841867,0.03886176,176.99,176.94,3.33]
[1752950842062,3.10886176,176.99,176.94,3.33]
[1752950842369,3.07,176.98,176.97,5.6476]
[1752950842569,3.07,176.98,176.97,8.9776]
[1752950842970,0.03886176,176.99,176.98,5.6475]
[1752950843165,0.03886176,176.99,176.98,8.9775]
[1752950843360,2.4116135,177.05,176.98,3.33]
[1752950843361,3.07,177.04,176.98,3.33]
[1752950843668,3.10975896,177.0,176.99,5.6472]
[1752950843868,3.10975896,177.0,176.99,3.33]
[1752950844068,3.07,177.0,176.99,3.33]
[1752950844370,3.07,177.0,176.99,8.9772]
[1752950845472,3.07,177.0,176.94,3.33]
[1752950846471,0.04266747,176.99,176.96,5.6479]
[1752950846769,3.07,176.98,176.97,3.33]
[1752950846964,3.07,176.98,176.97,8.9778]
[1752950847872,0.04266747,176.99,176.98,5.6475]
[1752950848072,3.11266747,176.99,176.98,8.9775]
[1752950850069,3.11266747,176.99,176.97,5.6477]
[1752950850270,3.11266747,176.99,176.97,3.33]
[1752950850472,3.11266747,176.99,176.95,3.33]
[1752950850673,3.11266747,176.99,176.95,8.9783]
[1752950850970,3.11266747,176.99,176.95,3.33]
[1752950851169,3.11266747,176.99,176.96,5.6481]
[1752950851671,3.11266747,176.99,176.95,8.9784]
[1752950853171,8.75986747,176.99,176.95,8.9784]
[1752950853475,3.07,176.98,176.94,5.6487]
[1752950853668,8.0592135,176.98,176.94,3.33]
[1752950853874,3.07,176.97,176.94,3.33]
[1752950854371,3.07,176.97,176.93,8.9788]
[1752950854576,3.07,176.93,176.9,3.33]
[1752950854874,3.07,176.91,176.88,3.33]
[1752950855879,3.07,176.9,176.88,3.33]
[1752950856171,3.07,176.9,176.86,8.9811]
[1752950856375,3.07,176.9,176.88,3.33]
[1752950858575,5.4816135,176.9,176.87,3.33]
[1752950858779,3.07,176.89,176.86,3.33]
[1752950859168,2.4116135,176.88,176.79,101.30958127]
[1752950859370,3.07,176.87,176.81,3.33]
[1752950860081,3.07,176.85,176.81,3.33]
[1752950860271,3.07,176.85,176.82,3.33]
[1752950860471,3.07,176.85,176.83,3.33]
[1752950860669,2.4116135,176.86,176.83,3.33]
[1752950860878,3.07,176.84,176.83,8.9821]
[1752950861480,3.07,176.84,176.8,3.33]
[1752950861680,2.4116135,176.84,176.8,3.33]
[1752950861880,3.07,176.83,176.8,3.33]
[1752950862383,3.07,176.83,176.75,382.1516135]
[1752950862685,3.07,176.83,176.8,8.983]
[1752950863081,3.07,176.83,176.8,3.33]
[1752950863882,3.07,176.83,176.81,5.6527]
[1752950865482,3.07,176.83,176.81,8.9827]
[1752950866086,3.07,176.83,176.82,5.6528]
[1752950866883,3.07,176.83,176.82,8.9828]
[1752950867183,3.10637083,176.84,176.82,3.33]
[1752950867488,3.10637083,176.84,176.83,3.33]
[1752950867788,3.10637083,176.84,176.82,3.33]
[1752950867986,3.10637083,176.84,176.78,3.33]
[1752950868592,3.10637083,176.84,176.81,5.653]
[1752950868783,3.10637083,176.84,176.81,8.983]
[1752950868984,3.10637083,176.84,176.81,3.33]
[1752950869490,3.10637083,176.84,176.82,3.33]
[1752950869889,3.10637083,176.84,176.82,8.9827]
[1752950870589,3.10637083,176.84,176.81,5.653]
[1752950870790,3.10637083,176.84,176.81,3.11]
[1752950871096,3.10637083,176.84,176.77,2.4116135]
[1752950871290,3.10637083,176.84,176.82,3.11]
[1752950872594,3.21,176.83,176.82,5.6527]
[1752950873194,3.21,176.83,176.82,8.7627]
[1752950873595,3.24637083,176.84,176.83,8.7624]
[1752950878493,0.03637083,176.84,176.83,8.7624]
[1752950881199,3.24637083,176.84,176.83,8.7624]
[1752950881500,3.24637083,176.84,176.83,3.11]
[1752950881699,0.03637083,176.84,176.83,3.11]
[1752950882197,0.03637083,176.84,176.83,8.7623]
[1752950882395,3.21,176.88,176.83,3.11]
[1752950882601,3.21,176.87,176.83,3.11]
[1752950882796,3.21,176.87,176.86,3.11]
[1752950882994,2.4116135,176.89,176.86,3.11]
[1752950883196,5.6216135,176.89,176.86,3.11]
[1752950883394,3.21,176.88,176.79,3.11]
[1752950883597,5.6216135,176.85,176.79,3.11]
[1752950883894,2.4116135,176.85,176.82,0.03964659]
[1752950884096,3.21,176.84,176.83,3.11]
[1752950884595,3.21,176.86,176.83,3.11]
[1752950885097,3.21,176.86,176.8,2.4116135]
[1752950885098,3.21,176.86,176.85,3.11]
[1752950885691,3.21,176.86,176.85,8.7617]
[1752950886695,3.21,176.86,176.85,3.11]
[1752950888201,3.21,176.86,176.84,5.6519]
[1752950888404,5.6216135,176.86,176.84,3.11]
[1752950888704,3.21,176.85,176.84,3.11]
[1752950889399,2.4116135,176.86,176.85,3.11]
[1752950889795,2.4116135,176.88,176.85,3.11]
[1752950890001,2.4116135,176.9,176.85,3.11]
[1752950890305,3.21,176.89,176.85,3.11]
[1752950890603,3.21,176.89,176.87,5.6509]
[1752950890904,3.21,176.89,176.88,3.11]
[1752950891403,3.21,176.91,176.88,8.7607]
[1752950891603,3.21,176.91,176.85,0.03847565]
[1752950891604,3.21,176.9,176.89,3.11]
[1752950892406,3.21,176.9,176.89,8.7604]
[1752950892607,3.21,176.93,176.89,3.11]
[1752950893304,3.21,176.93,176.91,3.11]
[1752950898410,3.21,176.93,176.89,8.80145611]
[1752950898603,3.21,176.93,176.9,3.11]
[1752950901613,3.27,176.92,176.9,3.11]
[1752950902313,8.9195,176.92,176.9,3.11]
[1752950902613,3.27,176.91,176.89,0.04115611]
[1752950902915,2.4116135,176.9,176.89,0.04115611]
[1752950903115,5.6816135,176.9,176.89,0.04115611]
[1752950903414,5.6816135,176.9,176.89,3.16115611]
[1752950906016,5.6816135,176.9,176.89,0.04115611]
[1752950906515,5.6816135,176.9,176.85,3.12]
[1752950906716,6.27449312,176.92,176.85,3.12]
[1752950906717,3.27,176.87,176.85,3.12]
[1752950906917,3.27,176.87,176.81,3.12]
[1752950907523,3.27,176.87,176.86,3.12]
[1752950908318,3.27,176.87,176.86,8.7713]
[1752950908916,2.45263318,176.88,176.83,3.12]
[1752950908917,0.04101968,176.88,176.83,3.12]
[1752950909312,3.27,176.89,176.88,5.6507]
[1752950909518,3.27,176.89,176.88,8.7707]
[1752950911514,0.03785211,176.9,176.88,3.12]
[1752950911715,0.03785211,176.9,176.89,8.7704]
[1752950912214,3.27,176.91,176.9,8.7701]
[1752950912420,3.30990399,176.91,176.9,8.7701]
[1752950913817,0.03990399,176.91,176.9,8.7701]
[1752950917314,3.27,176.96,176.95,5.6484]
[1752950917521,3.27,176.96,176.95,8.7684]
[1752950918418,3.27,176.96,176.95,5.6484]
[1752950919320,3.27,176.96,176.94,3.15792124]
[1752950919913,3.27,176.96,176.95,5.6485]
[1752950920212,3.27,176.96,176.95,8.7685]
[1752950921620,3.27,176.98,176.97,8.7678]
[1752950927226,5.6463,177.02,176.98,5.6474]
[1752950927426,3.27,177.01,176.98,5.6474]
[1752950927927,3.27,177.01,176.98,8.80314778]
[1752950928230,5.6816135,177.0,176.98,0.03574778]
[1752950928429,3.27,176.99,176.98,0.03574778]
[1752950929531,3.27,176.99,176.95,3.12]
[1752950929730,3.27,176.97,176.96,3.12]
[1752950930828,3.27,176.97,176.96,8.7679]
[1752950933833,3.27,176.97,176.96,8.7879]
[1752950934135,3.35729732,176.98,176.97,8.7878]
[1752950935234,0.03729732,176.98,176.97,8.7878]
[1752950937025,9.732e-05,176.98,176.97,8.7878]
[1752950937231,2.4116135,177.06,176.99,3.14]
[1752950937536,8.9653,177.05,176.99,3.14]
[1752950937737,3.32,177.04,177.02,8.786]
[1752950938031,3.32,177.04,177.03,3.14]
[1752950938233,3.32,177.04,177.03,8.7859]
[1752950939934,3.32,177.04,177.02,0.03933987]
[1752950939935,5.7316135,177.04,177.02,0.03933987]
[1752950940136,5.7316135,177.04,176.94,11.2974]
[1752950940137,3.32,177.03,176.94,13.7090135]
[1752950940339,2.4116135,177.01,176.92,2.4116135]
[1752950940637,3.32,177.02,176.96,2.4116135]
[1752950940837,3.32,177.04,176.99,3.14]
[1752950941033,3.32,177.04,177.03,5.6459]
[1752950941240,3.32,177.04,177.03,8.7859]
[1752950941744,3.35776021,177.05,177.04,8.7856]
[1752950942145,0.03776021,177.05,177.04,8.7856]
[1752950942344,6.021e-05,177.05,177.04,11.1972135]
[1752950944045,6.021e-05,177.05,177.04,8.7856]
[1752950944650,3.32006021,177.05,177.04,8.7856]
[1752950947949,3.32006021,177.05,177.04,5.6456]
[1752950949657,3.32006021,177.05,177.04,8.7856]
[1752950950955,3.32006021,177.05,177.03,8.82817222]
[1752950951153,3.32006021,177.05,177.03,5.68817222]
[1752950951353,3.32006021,177.05,177.03,8.82817222]
[1752950951755,3.32006021,177.05,177.04,5.6456]
[1752950953159,3.32006021,177.05,177.04,3.14]
[1752950953360,3.32006021,177.05,177.03,3.18227222]
[1752950954557,3.32006021,177.05,177.03,0.04227222]
[1752950954751,3.32006021,177.05,177.03,5.68797222]
[1752950955158,3.32006021,177.05,177.03,8.82797222]
[1752950955356,3.32006021,177.05,177.03,0.04227222]
[1752950955556,3.32006021,177.05,177.03,3.18227222]
[1752950956065,3.32006021,177.05,177.03,0.04227222]
[1752950956362,3.32006021,177.05,177.04,3.14]
[1752950956554,3.32006021,177.05,177.03,0.04227222]
[1752950956757,3.32,177.04,177.03,0.04227222]
[1752950956958,3.32,177.04,176.99,3.14]
[1752950957157,3.32,177.02,176.99,3.14]
[1752950957360,3.32,177.02,176.95,2.4116135]
[1752950957361,3.32,177.02,176.96,3.14]
[1752950958156,0.03709218,177.01,176.96,3.14]
[1752950958352,0.03709218,177.01,177.0,5.6467]
[1752950958558,3.35709218,177.01,177.0,8.7867]
[1752950960367,3.35709218,177.01,177.0,3.14]
[1752950964160,5.76870568,177.01,176.97,3.29]
[1752950964362,3.22,177.0,176.97,3.29]
[1752950964561,2.44870568,177.01,176.98,3.29]
[1752950964763,3.22,176.99,176.98,3.29]
[1752950970969,2.44870568,177.01,176.98,3.29]
[1752950971163,0.03709218,177.01,176.98,3.29]
[1752950972166,0.03709218,177.01,177.0,5.6469]
[1752950972368,0.03709218,177.01,177.0,8.9369]
[1752950973675,3.25709218,177.01,177.0,3.29]
[1752950974476,3.25709218,177.01,177.0,8.9369]
[1752950974668,0.03709218,177.01,177.0,8.9369]
[1752950978980,3.25709218,177.01,177.0,3.29]
[1752950983279,3.25709218,177.01,177.0,8.9369]
[1752951000288,3.25709218,177.01,177.0,3.29]
[1752951002795,8.90369218,177.01,176.99,5.6471]
[1752951003002,4.57431666,177.0,176.99,5.6471]
[1752951003295,5.6482,176.96,176.89,4.71399188]
[1752951003594,3.03,176.94,176.93,3.28]
[1752951003897,1.54431666,176.93,176.91,5.6497]
[1752951004101,3.03,176.92,176.91,5.6497]
[1752951004499,3.03,176.92,176.91,8.9297]
[1752951004901,3.03,176.92,176.91,3.28]
[1752951005494,3.03,176.92,176.91,8.9297]
[1752951006006,3.03,176.92,176.91,3.28]
[1752951006600,3.03,176.92,176.9,5.65]
[1752951006806,4.57431666,176.91,176.9,8.93]
[1752951007104,3.03,176.91,176.9,8.93]
[1752951009007,3.03,176.92,176.91,8.9296]
[1752951009203,3.03,176.92,176.84,3.28]
[1752951009404,2.41573865,176.92,176.87,3.28]
[1752951009604,3.03,176.91,176.87,3.28]
[1752951009800,2.41573865,176.92,176.87,3.28]
[1752951010108,3.03,176.9,176.89,8.9301]
[1752951010499,0.03994677,176.91,176.9,5.6501]
[1752951010699,0.03994677,176.91,176.9,8.9301]
[1752951011706,3.03,176.95,176.9,3.28]
[1752951011905,3.03,176.95,176.94,8.9288]
[1752951013303,11.91749312,177.02,176.96,8.928]
[1752951013304,3.03,176.97,176.96,8.928]
[1752951013512,3.03,176.97,176.96,3.28]
[1752951014109,3.03,176.97,176.95,8.96971311]
[1752951016812,3.03,176.97,176.96,3.28]
[1752951017911,5.6479,176.97,176.95,3.32131311]
[1752951018113,3.03,176.96,176.95,3.32131311]
[1752951018409,3.03,176.96,176.95,0.04131311]
[1752951019216,3.03,176.96,176.95,3.32131311]
[1752951019711,3.03,176.96,176.95,8.96981311]
[1752951019908,11.09333865,176.98,176.95,3.32131311]
[1752951020109,3.03,176.97,176.95,3.32131311]
[1752951020313,8.6779,176.97,176.95,3.32131311]
[1752951020614,3.33,176.96,176.95,3.32131311]
[1752951021115,3.33,176.96,176.95,8.96981311]
[1752951022513,3.33,176.99,176.96,5.648]
[1752951022714,3.33,176.98,176.97,3.3]
[1752951025917,2.41573865,177.01,176.97,8.9478]
[1752951026117,2.41573865,177.01,176.98,3.3]
[1752951026118,3.33,176.99,176.98,3.3]
[1752951026310,2.41573865,177.01,176.98,8.9475]
[1752951026511,3.33,177.02,176.99,3.3]
[1752951026917,3.33,177.02,177.0,3.3]